[Event "CZE-ch U16 Open 2023"]
[Site "Teplice"]
[Date "2023.03.15"]
[Round "6.4"]
[White "Seidl, Jan"]
[Black "Kubin, Tomas Daniel"]
[Result "1-0"]
[ECO "D75"]
[WhiteElo "2025"]
[BlackElo "1936"]
[Annotator "TA"]
[PlyCount "79"]
[EventDate "2023.03.09"]
[EventType "swiss"]
[EventCountry "CZE"]
[SourceTitle "playchess.com"]
[Source "ChessBase"]
[SourceQuality "1"]
[TimeControl "40/5400+30:1800+30"]

{[%evp 19,79,11,14,16,14,15,6,5,29,30,0,0,10,10,39,36,79,37,33,40,39,41,45,42,60,47,100,39,76,48,57,41,106,71,80,17,82,78,96,90,93,78,78,78,77,75,102,91,76,69,119,70,129,110,470,420,724,716,1403,1352,29988,29989]} 1. c4 {[%emt 0:00:05]} Nf6 {[%emt 0:00:15]} 2. Nf3 {[%emt 0:00:49]} g6 {[%emt 0:00:50]} 3. g3 {[%emt 0:00:10]} Bg7 {[%emt 0:00:51]} 4. Bg2 {[%emt 0:00:24]} d5 {[%emt 0:01:48]} 5. cxd5 {[%emt 0:00:07]} Nxd5 {[%emt 0:00:26]} 6. d4 {[%emt 0:01:35]} O-O {[%emt 0:02:23]} 7. O-O {[%emt 0:02:32]} c5 {[%emt 0:06:21]} 8. Nc3 {[%emt 0:03:38]} cxd4 {[%emt 0:06:06]} 9. Nxd4 {[%emt 0:00:32]} Nxc3 {[%emt 0:00:28]} 10. bxc3 {[%emt 0:00:06]} Qc7 {[%emt 0:02:00]} 11. Qb3 {[%emt 0:03:42] D75: Fianchetto Grünfeld: Main Line with 7...c5.} Nc6 {[%emt 0:05:01]} 12. Nxc6 {[%emt 0:09:09]} bxc6 {[%emt 0:00:08]} 13. Bf4 {[%emt 0:01:11] The position is equal.} e5 {[%emt 0:06:13]} 14. Be3 {[%emt 0:00:10]} Be6 {[%emt 0:03:28]} 15. c4 {[%emt 0:01:51]} Rab8 {[%emt 0:07:05]} 16. Qa4 {[%emt 0:00:24][%csl LRa7,LRc6]} c5 {[%emt 0:00:20]} 17. Rab1 {[%emt 0:03:03] [#] Wards off Rb4} Bf5 $146 {[%emt 0:05:16]} ({Predecessor:} 17... Rfd8 18. h4 h5 19. Rxb8 Rxb8 20. Bd5 Bd7 21. Qa3 Bf8 22. Rd1 Bf5 23. Bd2 Rb1 24. Rxb1 Bxb1 25. e4 Bc2 26. Bc3 Bd6 27. Qc1 Ba4 28. Qh6 {1-0 Goluch,P (2333)-Majocha,P (1919) Lazy Baltic Pearl op-A 17th 2021 (9)}) 18. Rxb8 {[%emt 0:04:34]} Rxb8 {[%emt 0:00:06]} 19. Bd5 {[%emt 0:01:06]} Bd7 {[%emt 0:04:51]} 20. Qa3 {[%emt 0:03:14]} Bf8 {[%emt 0:02:13]} 21. Bd2 {[%emt 0:01:01]} Qb6 {[%emt 0:06:58]} 22. Bc3 {[%emt 0:00:40]} Bd6 {[%emt 0:00:51]} ({Better is} 22... Qc7 $14) 23. e4 {[%emt 0:01:17]} (23. Ba5 $16 Qa6 24. Qf3) 23... Bc6 {[%emt 0:05:17]} 24. Rc1 {[%emt 0:07:35]} Bxd5 {[%emt 0:03:50]} 25. cxd5 {[%emt 0:00:21]} f5 {[%emt 0:01:14]} (25... Qb5 $14) 26. Qa4 {[%emt 0:03:18]} Rf8 {[%emt 0:04:31][%cal Oc5c4]} 27. Qd7 {[%emt 0:04:06]} (27. exf5 $16 gxf5 28. Qd7) 27... Bc7 {[%emt 0:03:01]} (27... fxe4 $11 28. Qe6+ Rf7) 28. Bd2 {[%emt 0:02:30] [#] And now Bh6 would win.} Qd6 {[%emt 0:01:30]} 29. Qa4 {[%emt 0:07:57] White is much more active.} Bb6 {[%emt 0:03:34]} 30. Qc4 {[%emt 0:02:41]} fxe4 {[%emt 0:01:17]} 31. Be3 {[%emt 0:05:47]} Rd8 {[%emt 0:01:09]} 32. Rd1 {[%emt 0:00:05][%cal Oa2a4][%mdl 1024] White has strong compensation.} ({Much worse is} 32. Bxc5 Qxd5 33. Qxd5+ Rxd5 34. Bxb6 axb6 $11) 32... Kg7 {[%emt 0:02:13]} 33. a4 {[%emt 0:01:42]} Rc8 {[%emt 0:01:18]} 34. Bd2 {[%emt 0:00:55]} ({But not} 34. Qxe4 c4 $11) 34... Rb8 {[%emt 0:04:12]} (34... Rf8 $14) 35. Bc3 {[%emt 0:00:38]} (35. Qxe4 $16 {Bc3 is the strong threat.} Kg8 36. Bc3) 35... Bc7 {[%emt 0:02:06]} ({Black should try} 35... Bd8 $14) 36. Qxe4 $16 {[%emt 0:00:37] Threatens to win with f4.} Rb3 $2 {[%emt 0:01:34][%mdl 8192] This move loses the game for Black.} (36... Kg8 $16 {is more resistant.}) 37. Qc4 $18 {[%emt 0:01:00]} Rb8 {[%emt 0:01:31]} (37... Rb4 $142 38. Bxb4 cxb4) 38. f4 {[%emt 0:00:32][%cal Bf2f4,Bf4e5][%mdl 32]} Qe7 {[%emt 0:04:08] [#]} 39. d6 $1 {[%emt 0:05:19][%mdl 576] Deflection, Double Attack} Qd7 {[%emt 0:01:23]} (39... Bxd6 40. Rxd6) 40. fxe5 {[%emt 0:00:19] Weighted Error Value: White=0.13 (very precise) /Black=0.62} ({Weaker is} 40. dxc7 Qxd1+ 41. Kg2 Rc8 $16) 1-0

[Event "CZE-ch U16 Open 2023"]
[Site "Teplice"]
[Date "2023.03.15"]
[Round "6.5"]
[White "Dolensky, Filip"]
[Black "Vilimek, Vit"]
[Result "1-0"]
[ECO "B30"]
[WhiteElo "2108"]
[BlackElo "2018"]
[Annotator "TA"]
[PlyCount "95"]
[EventDate "2023.03.09"]
[EventType "swiss"]
[EventCountry "CZE"]
[SourceTitle "playchess.com"]
[Source "ChessBase"]
[SourceQuality "1"]
[TimeControl "40/5400+30:1800+30"]

{[%evp 12,95,27,25,43,42,40,26,43,32,34,23,44,56,71,66,76,70,66,66,90,94,95,107,165,168,169,171,277,8,188,191,177,166,270,268,235,231,418,416,385,391,396,367,453,447,445,441,340,272,437,434,539,539,544,527,517,440,437,402,414,389,425,419,411,427,438,435,551,357,435,431,424,423,423,404,794,679,29968,29968,29969,2631,29987,29985,29984,29985]} 1. e4 {[%emt 0:00:03][%cal Be2e4,Be4e5][%mdl 32]} c5 {[%emt 0:00:04]} 2. Nf3 {[%emt 0:00:11]} Nc6 {[%emt 0:00:08]} 3. c3 {[%emt 0:00:10]} Nf6 {[%emt 0:00:06]} 4. e5 {[%emt 0:00:06]} Nd5 {[%emt 0:00:03]} 5. Bc4 {[%emt 0:00:52][%cal Bf1c4,Bc4b3,Bb3c2][%mdl 32]} Nb6 {[%emt 0:00:05]} 6. Bb3 {[%emt 0:00:05]} c4 {[%emt 0:00:08]} 7. Bc2 {[%emt 0:00:05]} Qc7 {[%emt 0:00:04] 7...d6 is a critical line. B22: Sicilian: 2 c3.} 8. O-O {[%emt 0:00:27]} Nxe5 {[%emt 0:06:54]} 9. Nxe5 {[%emt 0:00:34]} Qxe5 {[%emt 0:00:02] White has an edge.} 10. Re1 {[%emt 0:00:15]} Qc7 {[%emt 0:02:01]} 11. a4 {[%emt 0:00:19][%mdl 1024] White has compensation. 11.d3 is vanishing.} d5 {[%emt 0:02:18]} 12. Na3 {[%emt 0:02:55] Strongly threatening a5.} a6 {[%emt 0:07:31] [#]} 13. Qf3 $146 {[%emt 0:04:13] Black must now prevent a5.} ({Predecessor:} 13. a5 Nd7 14. d3 e6 15. dxc4 dxc4 16. Qd4 Qxa5 17. Be3 Qc7 18. Nb5 Qc6 19. Ra5 {1-0 Jones,G (2667)-Rowson,J (2565) GBR-ch KO London 2016 (1.1)}) 13... Be6 {[%emt 0:14:19]} 14. d4 {[%emt 0:08:36]} Nd7 {[%emt 0:08:10]} 15. Bf4 {[%emt 0:02:02]} Qc6 {[%emt 0:06:01]} 16. a5 {[%emt 0:04:13] White is much more active. The black rooks are badly placed.} g6 {[%emt 0:07:50]} 17. b3 {[%emt 0:10:48]} cxb3 {[%emt 0:05:19]} (17... Bg7 $16) 18. Bxb3 $18 {[%emt 0:00:07] aiming for Nc2.} Bg7 {[%emt 0:03:28] [#]} 19. Nc2 $1 {[%emt 0:17:09][%cal Ba3c2,Bc2b4,Bb4d5,Bd5e7][%mdl 32] Nb4 would be deadly.} Rc8 {[%emt 0:15:19] [#]} (19... O-O {was called for.}) 20. Bd2 $2 {[%emt 0:00:46]} (20. Nb4 $1 $18 {[%cal Rb4c6]} Qb5 21. Bxd5) 20... Qb5 {[%emt 0:05:55] Black cannot hold the game after this.} (20... Qc7 $11) 21. Nb4 {[%emt 0:04:12] And now Ba4 would win.} O-O {[%emt 0:11:41]} 22. Bxd5 {[%emt 0:02:11]} Bxd5 {[%emt 0:02:50]} (22... Rc7 $142 23. h4 Nf6 24. Bxe6 fxe6) 23. Nxd5 {[%emt 0:03:26]} Kh8 {[%emt 0:00:48]} 24. Rab1 {[%emt 0:05:29][%cal Ba1b1,Bb1b7,Bb7b6][%mdl 32]} (24. Rxe7 Rcd8 25. Bf4 (25. Rxf7 Rxf7 26. Qxf7 Ne5 $16) 25... Nb8) 24... Qc6 {[%emt 0:00:22]} (24... Qxa5 25. Rxb7 (25. Rxe7 Qa2 $16) (25. Nxe7 Rb8 $18) 25... Nf6) 25. Nxe7 {[%emt 0:00:29][%mdl 64] Discovered Attack} ({Weaker is} 25. Rxe7 Rce8 26. Bg5 (26. Rxf7 Rxf7 27. Qxf7 Rf8 $15) 26... f6 $18) 25... Qxf3 {[%emt 0:00:07]} 26. gxf3 {[%emt 0:00:04]} Rc4 {[%emt 0:01:07] Black is weak on the dark squares} 27. Nd5 {[%emt 0:01:10]} Ra4 {[%emt 0:00:38]} 28. Rxb7 {[%emt 0:00:14]} Nf6 {[%emt 0:00:27]} 29. Nxf6 {[%emt 0:00:09]} Bxf6 {[%emt 0:00:03]} 30. Rb6 {[%emt 0:00:20][%csl LRa6,LRf6]} Bh4 {[%emt 0:01:02]} (30... Kg7 31. Rxa6 Rd8) 31. Re4 {[%emt 0:02:00]} ({But not} 31. Rxa6 Kg7 32. Re4 Bd8 $18) 31... Ra1+ {[%emt 0:00:32]} 32. Kg2 {[%emt 0:00:20]} Bd8 {[%emt 0:00:30]} 33. Rxa6 {[%emt 0:01:28]} Rxa5 {[%emt 0:00:29]} 34. Rxa5 {[%emt 0:00:12]} Bxa5 {[%emt 0:00:01][%mdl 4096] Endgame KRB-KRB} 35. Re5 {[%emt 0:00:44]} Ra8 {[%emt 0:00:15]} 36. Rc5 {[%emt 0:00:31]} Kg7 {[%emt 0:00:18]} 37. Be3 {[%emt 0:00:28]} Kf6 {[%emt 0:00:26]} 38. c4 {[%emt 0:00:31]} Ke6 {[%emt 0:00:36]} 39. Rb5 {[%emt 0:00:29]} h5 {[%emt 0:00:46]} 40. Re5+ {[%emt 0:01:02]} Kd6 {[%emt 0:00:39]} 41. Bf4 {[%emt 0:30:59]} Kd7 {[%emt 0:30:06]} 42. Rb5 {[%emt 0:00:57]} Ra7 {[%emt 0:00:58]} 43. d5 {[%emt 0:01:28][%cal Bd4d5,Bd5d6][%mdl 32]} Ke7 {[%emt 0:01:02]} (43... Bc7 $142 44. Be3 Ra3) 44. c5 {[%emt 0:00:20][%cal Bc4c5,Bc5c6,Bc6c7][%mdl 32]} Bc3 {[%emt 0:00:29]} 45. c6 {[%emt 0:00:22]} Ra4 {[%emt 0:00:28]} 46. Rc5 {[%emt 0:02:25]} (46. Rb7+ $142 Kf6 47. c7 Ra8 48. Rb8 Rxb8 49. cxb8=Q Kg7 50. Be5+ Bxe5 51. Qxe5+ f6 52. Qe7+ {[%mdl 64] Overworked Piece} Kh6 53. d6) 46... Kd8 {[%emt 0:00:00]} 47. c7+ {[%emt 0:00:00]} Kc8 {[%emt 0:00:00]} 48. d6 {[%emt 0:00:00] Weighted Error Value: White=0.27 (precise) /Black=0.70} 1-0

[Event "CZE-ch U16 Open 2023"]
[Site "Teplice"]
[Date "2023.03.15"]
[Round "6.6"]
[White "Mametev, Artem"]
[Black "Davidek, Zdenek"]
[Result "1-0"]
[ECO "C95"]
[WhiteElo "2074"]
[BlackElo "1957"]
[Annotator "TA"]
[PlyCount "91"]
[EventDate "2023.03.09"]
[EventType "swiss"]
[EventCountry "CZE"]
[SourceTitle "playchess.com"]
[Source "ChessBase"]
[SourceQuality "1"]
[TimeControl "40/5400+30:1800+30"]

{[%evp 32,91,20,18,22,20,24,22,20,29,12,0,43,14,39,31,50,40,59,40,102,-73,849,843,743,402,668,675,626,248,235,214,931,914,1154,821,1157,1108,1020,680,669,664,783,572,647,535,525,423,430,411,751,741,1001,982,1370,1340,1279,1182,29989,29990,29990,29991]} 1. e4 {[%emt 0:00:02]} e5 {[%emt 0:00:08]} 2. Nf3 {[%emt 0:00:05]} Nc6 {[%emt 0:00:03]} 3. Bb5 {[%emt 0:00:03]} a6 {[%emt 0:00:04]} 4. Ba4 {[%emt 0:00:03]} Nf6 {[%emt 0:00:04]} 5. O-O {[%emt 0:00:06]} Be7 {[%emt 0:00:03]} 6. Re1 {[%emt 0:00:04]} b5 {[%emt 0:00:05]} 7. Bb3 {[%emt 0:00:03]} d6 {[%emt 0:00:05]} 8. c3 {[%emt 0:00:27]} O-O {[%emt 0:00:06]} 9. h3 {[%emt 0:00:02]} Nb8 {[%emt 0:00:24]} 10. d4 {[%emt 0:00:37]} Nbd7 {[%emt 0:00:06]} 11. Nbd2 {[%emt 0:01:28][%cal Bb1d2,Bd2f1,Bf1g3][%mdl 32]} Bb7 {[%emt 0:00:11]} 12. Bc2 {[%emt 0:00:42]} Re8 {[%emt 0:00:57]} 13. Nf1 {[%emt 0:00:28]} Bf8 {[%emt 0:00:05]} 14. Ng3 {[%emt 0:00:09]} g6 {[%emt 0:00:13]} 15. a4 {[%emt 0:01:11]} c5 {[%emt 0:00:51] 15...Bg7 injects fresh life into this line.} 16. d5 {[%emt 0:00:16]} c4 {[%emt 0:00:49]} 17. Bg5 {[%emt 0:00:12]} Nc5 {[%emt 0:15:11] C95: Closed Ruy Lopez: Breyer Variation with 10 d4.} 18. Qd2 {[%emt 0:01:22]} Be7 {[%emt 0:00:31]} 19. Be3 {[%emt 0:17:19]} Nfd7 {[%emt 0:05:00] The position is equal.} 20. Nh2 {[%emt 0:02:12]} h5 {[%emt 0:19:54]} 21. Rf1 {[%emt 0:02:57] [#]} Nf6 $146 {[%emt 0:11:59]} ({Predecessor:} 21... Bf6 22. f4 exf4 23. Rxf4 Be5 24. Raf1 Bxf4 25. Bxf4 h4 26. Ng4 hxg3 27. Bxd6 f6 {1-0 Preotu,R (2495)-Lesiege,A (2521) PRO League Atlantic rapid 2017 (2)}) 22. f3 {[%emt 0:05:14]} Qc7 {[%emt 0:07:58]} 23. Bg5 {[%emt 0:05:51]} Nh7 {[%emt 0:06:29]} 24. Bxe7 {[%emt 0:01:10]} Qxe7 {[%emt 0:00:03]} 25. f4 $1 {[%emt 0:16:05]} h4 {[%emt 0:14:15] [#]} (25... bxa4 $14 26. f5 Rf8) 26. fxe5 $2 {[%emt 0:18:56]} Qxe5 $2 {[%emt 0:08:23][%mdl 8192] Black cannot hold the game after this.} (26... hxg3 $17 27. Ng4 Rf8 28. exd6 Qxd6) 27. Ng4 $18 {[%emt 0:01:13]} Qxg3 {[%emt 0:01:57]} 28. Rf3 {[%emt 0:00:18]} Nxe4 {[%emt 0:00:52]} (28... Qxf3 $142 29. gxf3 Bc8 30. Nh6+ Kg7) 29. Bxe4 {[%emt 0:00:07]} Rxe4 {[%emt 0:00:09]} 30. Rxg3 {[%emt 0:01:51]} (30. Nh6+ Kg7 31. Nxf7 Qxf3 32. gxf3) 30... hxg3 {[%emt 0:00:02]} 31. Rf1 {[%emt 0:01:43] aiming for Nh6+.} f5 $2 {[%emt 0:01:00] [#]} (31... Rf8 32. Rf4 (32. Nh6+ Kg7 $14) 32... Rxf4 33. Qxf4 f5) 32. Qh6 $1 {[%emt 0:00:30]} Rf8 {[%emt 0:02:37]} (32... Kh8 33. Nf6) 33. Qxg6+ {[%emt 0:00:46]} Kh8 {[%emt 0:00:01]} 34. Nh6 {[%emt 0:01:00]} (34. Rxf5 $2 {is a self mate.} Re1+) 34... Bxd5 {[%emt 0:00:36]} 35. Qxd6 {[%emt 0:01:19]} Be6 {[%emt 0:00:42]} 36. Qxg3 Rf6 {[%emt 0:02:37]} 37. Qb8+ {[%emt 0:07:30]} Kg7 {[%emt 0:00:19] [#]} 38. Ng4 {[%emt 0:01:09][%mdl 512]} Rf8 {[%emt 0:00:54]} 39. Qb7+ {[%emt 0:01:17]} Rf7 {[%emt 0:00:09]} 40. Qc6 {[%emt 0:00:19]} ({Less strong is} 40. Qxa6 fxg4 41. a5 (41. Qxb5 Rxf1+ 42. Kxf1 Nf6 $16) (41. axb5 Rd7 $16) 41... Rxf1+ 42. Kxf1 Nf6 $16) 40... Re2 {[%emt 0:01:14]} (40... bxa4 $142 41. Nh2 Ng5 42. Qxa4 Rf6) 41. Qf3 {[%emt 0:32:44]} Rxb2 {[%emt 0:04:15]} 42. Ne5 {[%emt 0:00:00] And now Qg3+ would win.} Rf6 {[%emt 0:00:22]} 43. Qg3+ {[%emt 0:00:00]} Kf8 {[%emt 0:00:57]} 44. Rd1 {[%emt 0:00:00] White wants to mate with Rd8+.} Ke8 {[%emt 0:01:44] Prevents Rd8+.} 45. Qg7 {[%emt 0:00:00]} Re2 {[%emt 0:02:23]} 46. Qc7 {[%emt 0:00:00] Weighted Error Value: White=1.08/Black=0.64} 1-0

[Event "CZE-ch U16 Open 2023"]
[Site "Teplice"]
[Date "2023.03.15"]
[Round "6.7"]
[White "Pelc, Adam"]
[Black "Hladky, Tadeas"]
[Result "0-1"]
[ECO "A06"]
[WhiteElo "1871"]
[BlackElo "1973"]
[Annotator "TA"]
[PlyCount "80"]
[EventDate "2023.03.09"]
[EventType "swiss"]
[EventCountry "CZE"]
[SourceTitle "playchess.com"]
[Source "ChessBase"]
[SourceQuality "1"]
[TimeControl "40/5400+30:1800+30"]

{[%evp 11,80,40,39,0,0,-4,25,17,20,7,3,0,0,0,0,0,0,0,0,7,4,-15,-16,-13,-1,-16,-21,-24,-20,-16,-9,-16,-21,-69,-78,-118,-9,-9,-19,-18,0,0,0,0,0,0,0,-109,-109,-116,-101,-116,-102,-685,-436,-856,-834,-799,-739,-29968,-29969,-29971,-29972,-29966,-29966,-29963,-29960,-29962,-29963,-29978,-29979]} 1. Nf3 {[%emt 0:00:08]} d5 {[%emt 0:00:06]} 2. g3 {[%emt 0:00:31]} Nf6 {[%emt 0:00:07]} 3. Bg2 {[%emt 0:01:31]} Bf5 {[%emt 0:00:08]} 4. d4 {[%emt 0:03:06]} e6 {[%emt 0:00:13]} 5. O-O {[%emt 0:08:04]} Bd6 {[%emt 0:02:00]} 6. c4 {[%emt 0:02:00]} c6 {[%emt 0:00:14]} (6... dxc4 7. Nfd2 $16) 7. cxd5 {[%emt 0:06:25] D11: Slav Defence: 3 Nf3 sidelines and 3...Nf6 4 e3 Bg4.} cxd5 {[%emt 0:00:32]} 8. Nc3 {[%emt 0:00:45]} a6 {[%emt 0:07:35] [#]} 9. Ne5 $146 {[%emt 0:11:10] White has an edge.} ({Predecessor:} 9. Re1 O-O 10. Bg5 h6 11. e4 dxe4 12. Bxf6 Qxf6 13. Nxe4 Bxe4 14. Rxe4 Nc6 15. Qb3 {1-0 Marin Campos,D (1471)-Moreno Hernandez,A (1601) Bucaramanga Meneses Memorial 2022 (5)}) 9... O-O {[%emt 0:03:02]} 10. Bg5 {[%emt 0:03:23][%cal Oe2e4]} h6 {[%emt 0:11:16]} 11. Bxf6 {[%emt 0:10:34]} Qxf6 {[%emt 0:00:18]} 12. f4 {[%emt 0:01:22]} Qe7 {[%emt 0:04:29]} 13. e4 {[%emt 0:06:01]} dxe4 {[%emt 0:00:59]} 14. Nxe4 {[%emt 0:00:31]} Nd7 {[%emt 0:01:38]} 15. Nxd6 {[%emt 0:18:11]} Qxd6 {[%emt 0:00:04]} 16. Nxd7 {[%emt 0:02:07]} (16. Nc4 $5 {[%cal Rc4d6]} Qc7 17. Rc1 $11) 16... Qxd7 {[%emt 0:00:05]} 17. Rf2 {[%emt 0:00:04]} Rfd8 {[%emt 0:03:03]} 18. Rc1 {[%emt 0:02:22]} Rac8 {[%emt 0:01:34]} 19. Rxc8 {[%emt 0:01:28]} Qxc8 {[%emt 0:01:16]} 20. Rd2 {[%emt 0:00:53]} b6 {[%emt 0:01:34]} 21. g4 {[%emt 0:03:05]} Bh7 {[%emt 0:02:35]} 22. d5 {[%emt 0:06:25]} (22. Qe1 $11) 22... Qc5+ $15 {[%emt 0:00:38]} 23. Kh1 {[%emt 0:01:51]} exd5 {[%emt 0:00:20] Black is more active.} (23... Qb4 $17 24. d6 Be4) 24. Rxd5 $11 {[%emt 0:00:53]} Rxd5 {[%emt 0:01:28]} 25. Bxd5 $17 {[%emt 0:00:09][%mdl 4096] Endgame KQB-KQB} Bc2 {[%emt 0:10:31]} (25... h5 $5) 26. Qd2 {[%emt 0:00:10]} Qb5 {[%emt 0:00:59][%cal Rb5f1] [#]} 27. Kg1 {[%emt 0:03:50] Against Qf1+} ({But not} 27. Bxf7+ $2 Kxf7 28. Kg1 Qxb2 $19) 27... Qxb2 {[%emt 0:00:38]} 28. Kf2 $1 {[%emt 0:00:18][%cal Od5b3] Bb3! is the strong threat.} Qb1 {[%emt 0:01:29] Against Bb3} 29. Bc4 {[%emt 0:00:35] [#]} (29. Qe2 $11 Kh7 30. Qe8) 29... Qd1 $1 {[%emt 0:00:52]} ({Much worse is} 29... Qh1 $6 30. Qd8+ Kh7 31. Bxf7 Qxh2+ 32. Kf3 Qh1+ 33. Kf2 Qh2+ 34. Kf3 Qh3+ 35. Kf2 Qh2+ $11) 30. Qe3 {[%emt 0:04:45]} Ba4 {[%emt 0:03:58] Against Qe8+} 31. Be2 {[%emt 0:02:03]} Qc2 {[%emt 0:00:32]} 32. Qxb6 $2 {[%emt 0:00:17][%mdl 8192] White does not recover from this.} (32. Qd3 $17) 32... Bb5 $19 {[%emt 0:01:13]} ({Inferior is} 32... Qxa2 33. Qd8+ Kh7 34. Qd3+ g6 35. Qxa6 $11) 33. Qb8+ {[%emt 0:00:24]} (33. Qe3 $142 Qxa2 34. f5) 33... Kh7 {[%emt 0:00:06]} 34. Qe5 {[%emt 0:01:34]} Qxa2 {[%emt 0:00:06]} 35. Qf5+ {[%emt 0:00:07]} g6 {[%emt 0:00:04] Black mates.} 36. Qe4 {[%emt 0:00:32]} Qxe2+ {[%emt 0:00:06]} 37. Qxe2 {[%emt 0:00:06]} Bxe2 {[%emt 0:00:04]} 38. Kxe2 {[%emt 0:00:06]} Kg7 {[%emt 0:00:33]} 39. Kd3 {[%emt 0:00:04]} Kf6 {[%emt 0:00:05]} 40. h4 {[%emt 0:00:07]} h5 {[%emt 0:00:05] Weighted Error Value: White=0.61/Black=0.09 (flawless)} 0-1